Cogmind - Beta 16 @@@ ROGUE MODE // 2025.10.26 @ 16:46:24 Player: Moodge Result: Destroyed by D-53 Grenadier with Mini Grenade Launcher Performance ------------- Evolutions (0) 0 Regions Visited (2) 400 Robots Destroyed (11) 55 Value Destroyed (201) 201 Prototype IDs (0) 0 Alien Tech Used (0) 0 Bonus (0) 0 TOTAL SCORE: 656 Bonus ------- None Cogmind --------- Core Integrity 0/250 Matter 217/300 Energy 248/250 System Corruption 0% Temperature Cool (0) Movement Flying (210) Ox2 Location -10/Mines Parts ------- > --- POWER (1) -------- Ion Engine > --- PROPULSION (2) --- Aluminum Leg Flight Unit > --- UTILITY (2) ------ Small Storage Unit > --- WEAPON (2) ------- (None) > --- INVENTORY (8) ---- Light Ion Engine Flight Unit Scrap Suit Structural Scanner Datajack Mining Claw Peak State ------------ > --- POWER ------------ Light Ion Engine > --- PROPULSION ------- Aluminum Leg Aluminum Leg > --- UTILITY ---------- Small Storage Unit Medium Armor Plating > --- WEAPON ----------- Improved Light Cannon Improved Light Cannon > --- INVENTORY -------- Ion Engine Medium Armor Plating Medium Laser Assault Rifle Light Assault Rifle Mini Grenade Launcher Mini Grenade Launcher Datajack [Rating: 11] Favorites ----------- Power Light Ion Engine Engine Light Ion Engine Propulsion Aluminum Leg Leg Aluminum Leg Flight Unit Flight Unit Utility Small Storage Unit Storage Small Storage Unit Protection Medium Armor Plating Weapon Improved Light Cannon Energy Gun Medium Laser Ballistic Gun Assault Rifle Ballistic Cannon Improved Light Cannon Build | -11 -10 -10 ------- Run | Yrd Mat Min Slots Evolved . | . . . Power . | . . . Propulsion . | . . . Utility . | . . . Weapon . | . . . Parts Attached 15 | 8 6 1 Power 2 | 2 . . Engine 2 | 2 . . Core . | . . . Reactor . | . . . Propulsion 3 | 2 . 1 Treads . | . . . Leg 2 | 2 . . Wheel . | . . . Hover . | . . . Flight 1 | . . 1 Utility 3 | 1 2 . Device . | . . . Storage 1 | 1 . . Processor . | . . . Hackware . | . . . Protection 2 | . 2 . Artifact . | . . . Weapon 7 | 3 4 . Energy Gun 1 | 1 . . Energy Cannon . | . . . Ballistic Gun 2 | 2 . . Ballistic Cannon 4 | . 4 . Launcher . | . . . Special Weapon . | . . . Impact Weapon . | . . . Slashing Weapon . | . . . Piercing Weapon . | . . . Special Melee Weapon . | . . . Unidentified Prototypes . | . . . Parts Lost 5 | . 1 4 Power 1 | . 1 . Propulsion 1 | . . 1 Utility 1 | . . 1 Weapon 2 | . . 2 Highest Loss Streak 4 | . 1 4 To Critical Strikes . | . . . Average Backups 6 | 1 7 6 Power . | 1 1 . Propulsion 1 | . 1 2 Utility 1 | . 1 1 Weapon 2 | . 2 1 Tool/Special . | . . . Unused Backups 7 | . 2 5 Power . | . . . Propulsion 1 | . . 1 Utility 1 | . . 1 Weapon 4 | . 2 2 Tool/Special 1 | . . 1 Average Slot Usage (%) 95 | . 94 97 Engine 11 | . 11 14 Leg 27 | . 27 26 Storage 14 | . 14 14 Protection 13 | . 12 14 Ballistic Gun 1 | . 1 . Ballistic Cannon 26 | . 25 26 Peak Build Rating 11 | 6 11 11 Average Rating 9 | 4 9 9 On Entrance 5 | . 6 9 Avg Prop Armor Cover (%) . | . . . Naked Turns . | . . . Heaviest Build 25 | 12 23 25 Greatest Support 20 | 20 20 20 Greatest Overweight (x) 3 | . 2 3 Average Overweight (x) . | . . 1 Largest Inventory Capacity 8 | 8 8 8 Average Capacity 7 | 7 8 8 Most Carried 8 | 5 8 8 Average Carried 6 | 2 7 6 Final Capacity 8 | 8 8 8 Final Carried 7 | 2 7 7 Class Distribution -------------------- 100% | Mutant Dominant Class ---------------- Mutant | -10/Materials Mutant | -10/Mines Resources | -11 -10 -10 ----------- Run | Yrd Mat Min Matter Collected 511 | 178 289 44 Remotely . | . . . Salvage Created 195 | . 173 22 Parts 18 | . 12 6 Haulers Intercepted . | . . . Recyclers Shooed . | . . . Parts Field Recycled . | . . . Retrieved Matter . | . . . Parts Self-Destructed . | . . . Prevented . | . . . Parts Restored . | . . . Kills | -11 -10 -10 ------- Run | Yrd Mat Min Combat Hostiles Destroyed 10 | . 8 2 Cannons 10 | . 8 2 Classes Destroyed 3 | . 3 . Builder 1 | . 1 . Swarmer 6 | . 4 2 Grunt 4 | . 4 . Best Kill Streak 4 | . 4 2 Combat Bots Only 3 | . 3 2 Max Kills in Single Turn 1 | . 1 1 Gunslinging . | . . . Exploded . | . . . Melee . | . . . Uniques/NPCs Destroyed . | . . . Combat | -11 -10 -10 -------- Run | Yrd Mat Min Hostile Shots Fired 85 | . 59 26 Missed 27 | . 18 9 Hits 58 | . 41 17 Projectile 58 | . 41 17 AOE 15 | . . 15 Damage Taken 1050 | . 375 675 Core 253 | . 36 217 Absorbed by Shields . | . . . Core Remaining (%) 100 | 100 . . Volleys Fired 24 | . 19 5 Largest 2 | . 2 2 Hottest 66 | . 66 66 Shots Fired 46 | . 38 8 Gun . | . . . Cannon 46 | . 38 8 Launcher . | . . . Special . | . . . Kinetic 46 | . 38 8 Thermal . | . . . Explosive . | . . . Electromagnetic . | . . . Robot Hit Streak 4 | . 4 2 Robot Miss Streak 4 | . 4 4 Penetration Max . | . . . Secondary Targets . | . . . Shots Hit Robots 19 | . 17 2 Core Hits 10 | . 8 2 Critical Kills . | . . . Critical Parts Destroyed . | . . . Critical Strikes 2 | . 2 . Blast 2 | . 2 . Melee Attacks . | . . . Impact . | . . . Slashing . | . . . Piercing . | . . . Sneak Attacks . | . . . Combat Hostiles . | . . . Follow-up Attacks . | . . . Damage Inflicted 424 | . 342 82 Guns . | . . . Cannons 420 | . 338 82 Explosions . | . . . Melee . | . . . Ramming 4 | . 4 . Kinetic 420 | . 338 82 Thermal . | . . . Explosive . | . . . Electromagnetic . | . . . Impact . | . . . Slashing . | . . . Piercing . | . . . Highest Corruption . | . . . Average Corruption . | . . . Corruption Purged . | . . . Corruption Blocked . | . . . Overload Shots . | . . . Overflow Damage 7 | . 7 . Projectiles 7 | . 7 . Explosions . | . . . Melee . | . . . Knockbacks 3 | . 3 . Impact . | . . . Kinetic 3 | . 3 . Secondary . | . . . Self-Inflicted Damage . | . . . Shots . | . . . Rammed . | . . . Targets Rammed 1 | . 1 . Kicked 1 | . 1 . Crushed . | . . . Highest Temperature 90 | . 90 30 Average Temperature 27 | . 29 15 Received Heat Transfer 78 | . 78 . Siege Activations . | . . . Martial Activations . | . . . Shielding Activations . | . . . Robots Disrupted . | . . . Combat Hostiles . | . . . Robots Corrupted . | . . . Combat Hostiles . | . . . Parts Fried . | . . . Impact Corruptions . | . . . Robots Melted . | . . . Combat Hostiles . | . . . Parts Melted . | . . . Heat Transferred . | . . . Parts Sabotaged . | . . . Parts Stolen . | . . . Parts Stripped . | . . . Power Chain Reactions . | . . . Alert | -11 -10 -10 ------- Run | Yrd Mat Min Maximum Alert Level . | . . . Low Security (%) 100 | 100 100 100 Level 1 . | . . . Level 2 . | . . . Level 3 . | . . . Level 4 . | . . . Level 5 . | . . . High Security . | . . . Max Security . | . . . Peak Influence 75 | . 75 41 Initial 22 | . . 22 Average 24 | . 28 15 Influence Increases 306 | . 255 51 Destroy 0b10 Robot/C 200 | . 160 40 Destroy 0b10 Robot/NC 5 | . 5 . Destroy Leader 50 | . 40 10 Destroy Structure 6 | . 5 1 Lose Combat Pursuer 45 | . 45 . Influence Decreases 306 | . 197 109 Entered New Map 36 | . . 36 Time Decay 229 | . 187 42 Lost Part 41 | . 10 31 Squads Dispatched 2 | . 2 . Investigation 1 | . 1 . Extermination . | . . . Reinforcement 1 | . 1 . Assault . | . . . Garrison . | . . . Intercept . | . . . Searches Triggered . | . . . Construction Impeded . | . . . Haulers Reinforced . | . . . Active Scanning Responses . | . . . Cargo Convoy Interrupts . | . . . Stealth | -11 -10 -10 --------- Run | Yrd Mat Min Distress Signals 2 | . 2 . Communications Jammed . | . . . Distress Signals . | . . . Times Spotted 23 | . 18 5 Peak Tracking Total 5 | . 5 3 Tactical Retreats 2 | . 2 . Traps | -11 -10 -10 ------- Run | Yrd Mat Min Traps Triggered 3 | . 3 . Indirectly . | . . . Trap Hack Attempts . | . . . Triggered . | . . . Disarmed . | . . . Reprogrammed . | . . . Reused . | . . . Traps Extracted . | . . . Installed . | . . . Triggered . | . . . Machines | -11 -10 -10 ---------- Run | Yrd Mat Min Machines Disabled . | . . . Max in Single Turn . | . . . Machines Repaired . | . . . Machines Dismantled . | . . . Machines Sabotaged . | . . . Overloaded Fab Kills . | . . . Hacking | -11 -10 -10 --------- Run | Yrd Mat Min Machines Accessed . | . . . Terminals . | . . . Fabricators . | . . . Repair Stations . | . . . Recycling Units . | . . . Scanalyzers . | . . . Garrison Access . | . . . Total Hacks . | . . . Successful . | . . . Failed . | . . . Catastrophic . | . . . Database Lockouts . | . . . Manual . | . . . Terminals . | . . . Fabricators . | . . . Repair Stations . | . . . Recycling Units . | . . . Scanalyzers . | . . . Garrison Access . | . . . Terminal Hacks . | . . . Fabricator Hacks . | . . . Repair Station Hacks . | . . . Recycling Unit Hacks . | . . . Scanalyzer . | . . . Garrison Access Hacks . | . . . Unauthorized Hacks . | . . . Terminals . | . . . Fabricators . | . . . Repair Stations . | . . . Recycling Units . | . . . Scanalyzers . | . . . Garrison Access . | . . . Data Cores Recovered . | . . . Used . | . . . Hacking Detections . | . . . Full Trace Events . | . . . Feedback Events . | . . . Feedback Blocked . | . . . Robot Schematics Acquired . | . . . Robots Built . | . . . Authchips . | . . . Time . | . . . Total Robot Build Rating . | . . . Part Schematics Acquired . | . . . Parts Built . | . . . Authchips . | . . . Time . | . . . Total Part Build Rating . | . . . Part Studies Acquired . | . . . Parts Repaired . | . . . Time . | . . . Parts Recycled . | . . . Recycled Matter . | . . . Retrieved Matter . | . . . Retrieved Components . | . . . Parts Scanalyzed . | . . . Part Schematics Acquired . | . . . Parts Damaged . | . . . Bothacking | -11 -10 -10 ------------ Run | Yrd Mat Min Used RIF Installer . | . . . Robots Hacked . | . . . Non-combat . | . . . Combat . | . . . Robot Hacks Applied . | . . . Relay Couplers Released . | . . . Fabnet Peak Effective % . | . . . Robots Rewired . | . . . Allies Hacked . | . . . Hacks Repelled . | . . . Allies | -11 -10 -10 -------- Run | Yrd Mat Min Total Allies . | . . . Largest Group . | . . . Highest-Rated Group . | . . . Highest-Rated Ally . | . . . Total Orders . | . . . Ally Attacks . | . . . Total Damage . | . . . Kills . | . . . Allies Corrupted . | . . . Allies Melted . | . . . Intel | -11 -10 -10 ------- Run | Yrd Mat Min Active Infowar (turns) . | . . . Robot Analysis Total . | . . . Derelict Logs Recovered 1 | . . 1 Drone Launches . | . . . Drone Recoveries . | . . . Exploration | -11 -10 -10 ------------- Run | Yrd Mat Min Turns Passed 778 | 65 594 119 Spaces Moved 379 | 47 280 52 Core 14 | 13 1 . Treads . | . . . Legs 364 | 34 279 51 Wheels . | . . . Hover . | . . . Flight 1 | . . 1 Fastest Speed 50 | 50 120 190 Average Speed 163 | 100 167 194 Slowest Speed 290 | 120 190 290 Overloaded Moves . | . . . Propulsion Burnouts . | . . . Robots Hopped . | . . . Potential Cave-ins . | . . . Cave-ins Triggered . | . . . Exploration Rate (%) 27 | 4 61 17 Regions Visited 2 Branch Regions 1 Pre-discovered Areas . | . . . Known Exits Taken . | . . . Unknown Exits Taken 2 | 1 1 . Scrap Searched . | . . . Spaces Dug . | . . . Terrain Destroyed 4 | . 3 1 Melee . | . . . Projectile 4 | . 3 1 AOE . | . . . Terrain Rammed . | . . . Walls Destroyed . | . . . Machines Disabled . | . . . Actions | -11 -10 -10 --------- Run | Yrd Mat Min Total 490 | 62 364 64 Wait 30 | . 30 . Move 377 | 46 279 52 Hop . | . . . Pick Up 24 | 7 14 3 Fast Attach 7 | 1 6 . Attach 8 | 5 1 2 Detach . | . . . Swap 9 | 3 6 . Drop 10 | . 8 2 Fire 24 | . 19 5 Melee . | . . . Ram . | . . . Kick 1 | . 1 . Crush . | . . . Escape Stasis . | . . . Rewire . | . . . Trap . | . . . Miscellaneous . | . . . Route ------- -11/Scrapyard -10/Materials (discovered 2 exits: [*Min x2]) -10/Mines History --------- Turn | Location | Event 10 | -11/Scrapyard | Discovered new exit (range 14) 66 | -11/Scrapyard | Entered Materials 278 | -10/Materials | Discovered new exit (range 15) 313 | -10/Materials | Build established: Mutant 630 | -10/Materials | Discovered new exit (range 5) 660 | -10/Materials | Entered Mines 689 | -10/Mines | Assembled infested the area 756 | -10/Mines | Found a Scrap Suit stashed away for nefarious purposes 761 | -10/Mines | Found Scrap Suit 776 | -10/Mines | Core integrity fell below 50% 779 | -10/Mines | Core integrity fell below 20% 779 | -10/Mines | Destroyed by D-53 Grenadier with Mini Grenade Launcher Last Messages --------------- way to safely deliver this to MAIN.C to get on their good side and convince them to let us into the system." 00760_ C-45 Heavy ARC bursts open, deploying its payload. 00760_ D-53 Grenadier unfolds itself. 00760_ Dropped Mining Claw. 00760_ Dropped Lgt. Ion Engine. 00761_ Acquired Scrap Suit. 00765_ Aluminum Leg destroyed. 00765_ Imp. Light Cannon destroyed. 00769_ The unstable cave ceiling collapses. 00771_ Med. Armor Plating destroyed. 00774_ U-05 Engineer lays Concrete. 00776_ The unstable cave ceiling collapses. 00776_ U-05 Engineer lays Concrete. 00777_ The unstable cave ceiling collapses. 00777_ U-05 Engineer builds a Wall. 00779_ The unstable cave ceiling collapses. 00779_ Imp. Light Cannon destroyed. Map ----- +----------------------------------------------------+ | ?????????????????????????????????????????????????? | | ?????????????????????????????????????????????????? | | ?????????????????????????????????????????????????? | | ?????????????????????????????????????????????????? | | ?????????????????????????? ????????????????????? | | ?????????????????????????? ???????????????????? | | ?????????????????????????? ???????????????????? | | ?????????????????????????? "???????????????????? | | ??????????????????????????" ""??????????????????? | | ???????????????????????###%" ""??????????????????? | | ??????????????????????## ???????????????????? | | ????????????????????### ???????????????????? | | ????????????????????# ???????????????????? | | ??????????????????### %u????????????????????? | | ?????????????????## #????????????????????? | | ?????????????????# d #????????????????????? | | ?????????????????? d ####?????????????????? | | ???????????????????? # ??????????????????? | | ????????????????????## ##??????????????????? | | ????????????????????# #??????????????????? | | ??????????????####### #??????????????????? | | ??????????????# #??????????????????? | | ??????????????# ##### #??????????????????? | | ??????????????# #??## #??????????????????? | | ??????????????# #???# # #??????????????????? | | ????# ####### #???# @ #??????????????????? | | ?#?# #???# #??????????????????? | | # ####### #???# #??????????????????? | | ####### #???## # ?????????????????? | | """" #?# #????### # #???????????????? | | """" ### ######??????## # ?#???????????????? | | """" #????????????# ? #????????????????? | | #### #????????????### #????????????????? | | #?????# #???????????????# ? #????????????????? | | #??????# #????????????????#?? ????????????????? | | ##?????# #??????????????????? #???????????????? | | ####### #???????????????????? #???????????????? | | #?????????????????????#???????????????? | | # #######?????????????????????????????????????? | | ## #???????????????????????????????????????????? | | ?#####???????????????????????????????????????????? | | ?????????????????????????????????????????????????? | | ?????????????????????????????????????????????????? | | | | | | | | | | | | | | | +----------------------------------------------------+ Best States ------------- Heat Dissipation 25 Energy Generation 10 Energy Capacity 250 Matter Stores 225 Matter Capacity 300 Sight Range 16 Terrain Scan Density 10 Armor Coverage 225 Evasion (%) 55 Item Schematics ----------------- None Robot Schematics ------------------ None Fabricated ------------ Nothing Repaired ---------- Nothing Studied --------- None Alien Tech Used ----------------- None Achievements -------------- None Challenges ------------ None Game ------ Seed RapidPotentialFocus Manual? 0 Play Time 00:08:33 Cumulative 22.4 hours Start 2025.10.26 @ 16:39:20 End 2025.10.26 @ 16:46:24 Sessions 1 Manual Loads 0 Difficulty Rogue Special Mode None Game No. 72 Rogue 72 Adventurer 0 Explorer 0 Win Type - Total 0 Types 0/0/0/0/0/0/0/0/0/0 Lore% 10 Gallery% 22 Achievement% 18 Wizard Run 0 Options --------- Layout 1 ASCII 0 Keyboard 0 Movement Mouse Keybinds 0 Fullscreen 2 Font 32/SmallcapsGlow Map View 50x35 Zoom Use 0% Tactical HUD 1 Map Filters NONE Filters NONE Steam 1 RUN: 25949fd1-c9b3-4f11-84dd-fe4f535b5d92